Cogmind - Beta 11 @@@ ROGUE MODE // 2022.04.13 @ 22:58:34 Player: Azken Zutik Result: Self-destructed Performance ------------- Evolutions (2) 1000 Regions Visited (5) 1000 Robots Destroyed (21) 105 Value Destroyed (423) 423 Prototype IDs (23) 460 Alien Tech Used (0) 0 Bonus (324) 324 TOTAL SCORE: 3312 Bonus ------- Follower Combat Kills 60 Aligned with FarCom 300 Friendly Fire -36 Cogmind --------- Core Integrity 550/550 Matter 122/300 Energy 160/160 System Corruption 0% Temperature Cool (0) Movement Walking (190) Ox1 Location -8/Materials Parts ------- > --- POWER (1) -------- Light Nuclear Core > --- PROPULSION (3) --- Aluminum Leg Aluminum Leg > --- UTILITY (3) ------ Improved Heat Sink Large Storage Unit > --- WEAPON (4) ------- Particle Gun Light Assault Rifle > --- INVENTORY (15) --- Light Nuclear Core Small Matter Pod (50) Medium Matter Pod (100) Machine Analyzer Signal Interpreter Seismic Detector Transport Network Coupler Hacking Suite Mining Laser Peak State ------------ > --- POWER ------------ Light Nuclear Core > --- PROPULSION ------- Aluminum Leg Aluminum Leg > --- UTILITY ---------- Improved Heat Sink Large Storage Unit > --- WEAPON ----------- Particle Gun Light Assault Rifle > --- INVENTORY -------- Light Nuclear Core Small Matter Pod Medium Matter Pod Machine Analyzer Signal Interpreter Seismic Detector Transport Network Coupler Hacking Suite Mining Laser [Rating: 13] Favorites ----------- Power Ion Engine Engine Ion Engine Power Core Light Nuclear Core Propulsion Light Treads Treads Light Treads Leg Aluminum Leg Utility Large Storage Unit Device Tractor Beam Storage Large Storage Unit Protection Light Armor Plating Weapon Assault Rifle Energy Gun Particle Gun Ballistic Gun Assault Rifle Ballistic Cannon Light Cannon Build | -11 -10 -10 -10 -9 -8 ------- Run | Scr Mat Min Exi Min Mat Slots Evolved 4 | . . . . . 4 Power . | . . . . . . Propulsion 1 | . . . . . 1 Utility 1 | . . . . . 1 Weapon 2 | . . . . . 2 Parts Attached 20 | 7 3 2 8 . . Power 3 | 1 1 . 1 . . Engine 2 | 1 1 . . . . Core 1 | . . . 1 . . Reactor . | . . . . . . Propulsion 4 | 2 . . 2 . . Treads 2 | 2 . . . . . Leg 2 | . . . 2 . . Wheel . | . . . . . . Hover . | . . . . . . Flight . | . . . . . . Utility 7 | 2 2 2 1 . . Device 3 | 1 . 1 1 . . Storage 3 | 1 2 . . . . Processor . | . . . . . . Hackware . | . . . . . . Protection 1 | . . 1 . . . Artifact . | . . . . . . Weapon 6 | 2 . . 4 . . Energy Gun 1 | . . . 1 . . Energy Cannon . | . . . . . . Ballistic Gun 4 | 2 . . 2 . . Ballistic Cannon 1 | . . . 1 . . Launcher . | . . . . . . Special Weapon . | . . . . . . Impact Weapon . | . . . . . . Slashing Weapon . | . . . . . . Piercing Weapon . | . . . . . . Special Melee Weapon . | . . . . . . Unidentified Prototypes . | . . . . . . Parts Lost 9 | . . 1 8 . . Power 1 | . . . 1 . . Propulsion 2 | . . . 2 . . Utility 2 | . . 1 1 . . Weapon 4 | . . . 4 . . Highest Loss Streak 6 | . . 1 6 . . To Critical Strikes 3 | . . . 3 . . Average Slot Usage (%) 97 | . 100 99 88 100 . Engine 12 | . 14 14 11 . . Treads 25 | . 28 28 21 . . Leg 1 | . . . 1 28 . Device 5 | . 14 4 . 14 . Storage 14 | . 14 14 14 14 . Protection 7 | . . 9 11 . . Ballistic Gun 26 | . 28 28 25 14 . Naked Turns . | . . . . . . Heaviest Build 32 | 13 30 32 32 30 . Greatest Support 40 | 40 40 40 40 20 . Greatest Overweight (x) 6 | . . . 6 1 . Average Overweight (x) . | . . . . 1 . Largest Inventory Capacity 15 | 8 15 15 15 15 . Average Capacity 13 | 7 9 15 15 15 . Most Carried 15 | 2 10 12 15 9 . Average Carried 9 | . 5 10 13 9 . Final Capacity 15 | 8 15 15 15 15 15 Final Carried 12 | 2 9 12 9 9 9 Class Distribution -------------------- 95% | Mutant 4% | Scavenger-Mutant Dominant Class ---------------- Mutant | -10/Materials Mutant | -10/Mines Mutant | -10/Exiles Scavenger-Mutant | -9/Mines Scavenger-Mutant | -8/Materials Resources | -11 -10 -10 -10 -9 -8 ----------- Run | Scr Mat Min Exi Min Mat Matter Collected 1018 | 348 437 118 115 . . Remotely 590 | 153 437 . . . . Salvage Created 760 | 180 437 86 57 . . Parts 49 | 15 28 6 . . . Haulers Intercepted 1 | . 1 . . . . Recyclers Shooed 1 | 1 . . . . . Parts Field Recycled . | . . . . . . Retrieved Matter . | . . . . . . Parts Self-Destructed . | . . . . . . Prevented . | . . . . . . Kills | -11 -10 -10 -10 -9 -8 ------- Run | Scr Mat Min Exi Min Mat Combat Hostiles Destroyed 10 | . 7 2 1 . . Guns 10 | . 7 2 1 . . Classes Destroyed 8 | 3 5 . . . . Worker 3 | 1 2 . . . . Tunneler 3 | 3 . . . . . Hauler 1 | . 1 . . . . Recycler 1 | 1 . . . . . Mechanic 1 | . 1 . . . . Operator 1 | . 1 . . . . Watcher 1 | . 1 . . . . Grunt 9 | . 7 2 . . . Best Kill Streak 4 | 2 4 2 1 . . Combat Bots Only 4 | . 4 2 1 . . Max Kills in Single Turn 1 | 1 1 1 1 . . Gunslinging . | . . . . . . Exploded . | . . . . . . Melee . | . . . . . . Uniques/NPCs Destroyed 1 | . . . 1 . . 8R-AWN (-10/Exiles) Combat | -11 -10 -10 -10 -9 -8 -------- Run | Scr Mat Min Exi Min Mat Damage Taken 1206 | . 279 123 804 . . Core 242 | . 44 16 182 . . Absorbed by Shields . | . . . . . . Core Remaining (%) 51 | 100 . . . 3 . Volleys Fired 107 | 13 44 7 43 . . Largest 2 | 2 2 2 2 . . Hottest 55 | 40 40 40 55 . . Shots Fired 208 | 26 88 14 80 . . Gun 193 | 26 88 14 65 . . Cannon 15 | . . . 15 . . Launcher . | . . . . . . Special . | . . . . . . Kinetic 208 | 26 88 14 80 . . Thermal . | . . . . . . Explosive . | . . . . . . Electromagnetic . | . . . . . . Robot Hit Streak 10 | 5 10 8 10 . . Robot Miss Streak 4 | 1 4 1 3 . . Penetration Max . | . . . . . . Secondary Targets . | . . . . . . Shots Hit Robots 142 | 18 54 13 57 . . Core Hits 49 | 6 24 4 15 . . Critical Kills . | . . . . . . Critical Parts Destroyed . | . . . . . . Critical Strikes . | . . . . . . Melee Attacks . | . . . . . . Impact . | . . . . . . Slashing . | . . . . . . Piercing . | . . . . . . Sneak Attacks . | . . . . . . Combat Hostiles . | . . . . . . Follow-up Attacks . | . . . . . . Damage Inflicted 1836 | 199 708 178 751 . . Guns 1646 | 199 708 178 561 . . Cannons 190 | . . . 190 . . Explosions . | . . . . . . Melee . | . . . . . . Ramming . | . . . . . . Kinetic 1836 | 199 708 178 751 . . Thermal . | . . . . . . Explosive . | . . . . . . Electromagnetic . | . . . . . . Impact . | . . . . . . Slashing . | . . . . . . Piercing . | . . . . . . Highest Corruption 1 | . 1 1 1 1 . Average Corruption 1 | . 1 1 1 1 . Corruption Purged . | . . . . . . Corruption Blocked . | . . . . . . Effects 16 | . 2 10 3 1 . Message Errors 5 | . . 3 2 . . Matter Fused 8 | . 2 5 . 1 . Heat Flow Errors 2 | . . 2 . . . Misfires 1 | . . . 1 . . Overload Shots . | . . . . . . Overflow Damage . | . . . . . . Projectiles . | . . . . . . Explosions . | . . . . . . Melee . | . . . . . . Knockbacks 2 | . . . 2 . . Impact . | . . . . . . Kinetic 2 | . . . 2 . . Secondary . | . . . . . . Self-Inflicted Damage . | . . . . . . Shots . | . . . . . . Rammed . | . . . . . . Targets Rammed . | . . . . . . Kicked . | . . . . . . Crushed . | . . . . . . Highest Temperature 155 | . 20 155 . . . Average Temperature 38 | . 7 56 . . . Received Heat Transfer 255 | . 180 75 . . . Siege Activations . | . . . . . . Robots Corrupted . | . . . . . . Combat Hostiles . | . . . . . . Parts Fried . | . . . . . . Impact Corruptions . | . . . . . . Robots Melted . | . . . . . . Combat Hostiles . | . . . . . . Parts Melted . | . . . . . . Heat Transferred . | . . . . . . Parts Sabotaged . | . . . . . . Parts Stolen . | . . . . . . Parts Stripped . | . . . . . . Power Chain Reactions . | . . . . . . Missiles Intercepted . | . . . . . . Alert | -11 -10 -10 -10 -9 -8 ------- Run | Scr Mat Min Exi Min Mat Peak Influence 195 | 25 195 79 . . . Initial 39 | . 16 39 . . . Average 41 | 11 98 26 . . . Maximum Alert Level . | . . . . . . Low Security (%) 100 | 100 100 100 . 100 . Level 1 . | . . . . . . Level 2 . | . . . . . . Level 3 . | . . . . . . Level 4 . | . . . . . . Level 5 . | . . . . . . High Security . | . . . . . . Max Security . | . . . . . . Squads Dispatched 3 | . 3 . . . . Investigation . | . . . . . . Extermination . | . . . . . . Reinforcement 3 | . 3 . . . . Assault . | . . . . . . Garrison . | . . . . . . Intercept . | . . . . . . Searches Triggered . | . . . . . . Construction Impeded . | . . . . . . Haulers Reinforced . | . . . . . . Active Scanning Responses . | . . . . . . Cargo Convoy Interrupts . | . . . . . . Stealth | -11 -10 -10 -10 -9 -8 --------- Run | Scr Mat Min Exi Min Mat Distress Signals 2 | . 2 . . . . Communications Jammed . | . . . . . . Distress Signals . | . . . . . . Times Spotted 18 | . 15 2 1 . . Peak Tracking Total 5 | . 5 2 2 . . Tactical Retreats . | . . . . . . Traps | -11 -10 -10 -10 -9 -8 ------- Run | Scr Mat Min Exi Min Mat Traps Triggered 1 | . 1 . . . . Indirectly . | . . . . . . Trap Hack Attempts . | . . . . . . Triggered . | . . . . . . Disarmed . | . . . . . . Reprogrammed . | . . . . . . Reused . | . . . . . . Traps Extracted . | . . . . . . Installed . | . . . . . . Triggered . | . . . . . . Machines | -11 -10 -10 -10 -9 -8 ---------- Run | Scr Mat Min Exi Min Mat Machines Disabled 1 | . . . 1 . . Max in Single Turn . | . . . . . . Machines Sabotaged . | . . . . . . Garrisons Compromised . | . . . . . . Overloaded Fab Kills . | . . . . . . Hacking | -11 -10 -10 -10 -9 -8 --------- Run | Scr Mat Min Exi Min Mat Machines Accessed 2 | . . . 1 1 . Terminals 1 | . . . . 1 . Fabricators . | . . . . . . Repair Stations . | . . . . . . Recycling Units . | . . . . . . Scanalyzers . | . . . . . . Garrison Access . | . . . . . . Total Hacks 2 | . . . 1 1 . Successful 1 | . . . 1 . . Failed 1 | . . . . 1 . Catastrophic . | . . . . . . Database Lockouts . | . . . . . . Manual 1 | . . . 1 . . Terminals 1 | . . . . 1 . Fabricators . | . . . . . . Repair Stations . | . . . . . . Recycling Units . | . . . . . . Scanalyzers . | . . . . . . Garrison Access . | . . . . . . Terminal Hacks 1 | . . . 1 . . EX-Prototype ID Bank 1 | . . . 1 . . Fabricator Hacks . | . . . . . . Repair Station Hacks . | . . . . . . Recycling Unit Hacks . | . . . . . . Scanalyzer . | . . . . . . Garrison Access Hacks . | . . . . . . Unauthorized Hacks . | . . . . . . Terminals . | . . . . . . Fabricators . | . . . . . . Repair Stations . | . . . . . . Recycling Units . | . . . . . . Scanalyzers . | . . . . . . Garrison Access . | . . . . . . Data Cores Recovered . | . . . . . . Used . | . . . . . . Hacking Detections . | . . . . . . Full Trace Events . | . . . . . . Feedback Events . | . . . . . . Feedback Blocked . | . . . . . . Robot Schematics Acquired . | . . . . . . Robots Built . | . . . . . . Authchips . | . . . . . . Time . | . . . . . . Total Robot Build Rating . | . . . . . . Part Schematics Acquired . | . . . . . . Parts Built . | . . . . . . Authchips . | . . . . . . Time . | . . . . . . Total Part Build Rating . | . . . . . . Parts Repaired . | . . . . . . Time . | . . . . . . Parts Recycled . | . . . . . . Recycled Matter . | . . . . . . Retrieved Matter . | . . . . . . Retrieved Components . | . . . . . . Parts Scanalyzed . | . . . . . . Part Schematics Acquired . | . . . . . . Parts Damaged . | . . . . . . Bothacking | -11 -10 -10 -10 -9 -8 ------------ Run | Scr Mat Min Exi Min Mat Used RIF Installer . | . . . . . . Robots Hacked . | . . . . . . Non-combat . | . . . . . . Combat . | . . . . . . Robot Hacks Applied . | . . . . . . Relay Couplers Released . | . . . . . . Fabnet Peak Effective % . | . . . . . . Robots Rewired . | . . . . . . Allies Hacked . | . . . . . . Hacks Repelled . | . . . . . . Allies | -11 -10 -10 -10 -9 -8 -------- Run | Scr Mat Min Exi Min Mat Total Allies 5 | . . 5 . . . Largest Group 5 | . . 5 5 . . Highest-Rated Group 79 | . . 79 79 . . Highest-Rated Ally 31 | . . 31 31 . . Total Orders 3 | . . . 3 . . STAY 2 | . . . 2 . . FOLLOW 1 | . . . 1 . . Ally Attacks 26 | . . 10 16 . . Total Damage 167 | . . 161 6 . . Kills 2 | . . 2 . . . Allies Corrupted . | . . . . . . Allies Melted . | . . . . . . Intel | -11 -10 -10 -10 -9 -8 ------- Run | Scr Mat Min Exi Min Mat Robot Analysis Total . | . . . . . . Derelict Logs Recovered 1 | . . 1 . . . Drone Launches . | . . . . . . Drone Recoveries . | . . . . . . Exploration | -11 -10 -10 -10 -9 -8 ------------- Run | Scr Mat Min Exi Min Mat Turns Passed 2752 | 179 523 1372 596 82 . Spaces Moved 1336 | 83 199 741 279 34 . Core 6 | 4 . . 2 . . Treads 1286 | 79 199 741 267 . . Legs 44 | . . . 10 34 . Wheels . | . . . . . . Hover . | . . . . . . Flight . | . . . . . . Fastest Speed 50 | 50 160 160 160 190 . Average Speed 160 | 154 160 160 162 190 . Slowest Speed 350 | 160 160 160 350 190 . Overloaded Moves . | . . . . . . Propulsion Burnouts . | . . . . . . Robots Hopped . | . . . . . . Cave-ins Triggered . | . . . . . . Exploration Rate (%) 33 | 3 29 99 60 10 1 Regions Visited 5 Branch Regions 3 Pre-discovered Areas 1 | . . 1 . . . Known Exits Taken . | . . . . . . Unknown Exits Taken 5 | 1 1 1 1 1 . Scrap Searched 1 | . . 1 . . . Spaces Dug . | . . . . . . Terrain Destroyed . | . . . . . . Melee . | . . . . . . Projectile . | . . . . . . AOE . | . . . . . . Terrain Rammed . | . . . . . . Walls Destroyed . | . . . . . . Machines Disabled . | . . . . . . Actions | -11 -10 -10 -10 -9 -8 --------- Run | Scr Mat Min Exi Min Mat Total 1728 | 104 316 913 343 52 . Wait 248 | . 61 160 8 19 . Move 1331 | 82 198 740 278 33 . Hop . | . . . . . . Pick Up 15 | 2 7 3 3 . . Fast Attach 15 | 7 1 2 5 . . Attach 3 | . . . 3 . . Detach . | . . . . . . Swap 2 | . 2 . . . . Drop 7 | . 3 1 3 . . Fire 107 | 13 44 7 43 . . Melee . | . . . . . . Ram . | . . . . . . Kick . | . . . . . . Crush . | . . . . . . Escape Stasis . | . . . . . . Rewire . | . . . . . . Trap . | . . . . . . Miscellaneous . | . . . . . . Route ------- -11/Scrapyard -10/Materials -10/Mines (discovered 3 exits: [*Mat x2] / *Exi) -10/Exiles (discovered 2 exits: *Min x2) -9/Mines -8/Materials History --------- Turn | Location | Event 41 | -11/Scrapyard | Discovered new exit (range 14) 180 | -11/Scrapyard | Entered Materials 314 | -10/Materials | Build established: Mutant 539 | -10/Materials | Discovered new exit (range 16) 703 | -10/Materials | Entered Mines 1109 | -10/Mines | Deemed a non-threat by the Exiles lab entrance 1111 | -10/Mines | Discovered new exit (range 5) 1176 | -10/Mines | Discovered new exit (range 5) 1404 | -10/Mines | Learned location of Zion (-7) 1885 | -10/Mines | Discovered new exit (range 6) 1999 | -10/Mines | Assisted by bots powering up and referring to "LRC-V3" 2075 | -10/Mines | Entered Exiles 2075 | -10/Exiles | Accompanied by 5 allies 2105 | -10/Exiles | Led the pair of lost Derelicts to a safe place 2120 | -10/Exiles | Discovered new exit (range 14) 2141 | -10/Exiles | Met 8R-AWN 2171 | -10/Exiles | Met EX-HEX 2219 | -10/Exiles | Met EX-BIN 2240 | -10/Exiles | Aligned with FarCom system 2242 | -10/Exiles | Given EX-Vault access code 2290 | -10/Exiles | Opened EX-Vault 2336 | -10/Exiles | Warned to stay clear of 0b10 Research branches 2355 | -10/Exiles | Exiles lab attacked by MAIN.C 2446 | -10/Exiles | Discovered new exit (range 10) 2516 | -10/Exiles | Attacked by the Exiles 2572 | -10/Exiles | Core integrity fell below 50% 2610 | -10/Exiles | Lost 6 parts (1p2n1u2w) 2613 | -10/Exiles | Core integrity fell below 20% 2637 | -10/Exiles | Destroyed 8R-AWN 2671 | -10/Exiles | Entered Mines 2730 | -9/Mines | Discovered new exit (range 6) 2753 | -9/Mines | Entered Materials 2753 | -8/Materials | Evolved 4 slots: Propulsion x1, Utility x1, Weapon x2 2753 | -8/Materials | Self-destructed Last Messages --------------- 02631_ Penetrated by HV Slug. 02636_ HV Slug penetrates Wall. 02637_ 8R-AWN destroyed. 02639_ Acquired 60 matter. 02646_ Acquired Aluminum Leg. 02652_ Acquired 55 matter. 02655_ Acquired Lgt. Nuclear Core. 02659_ Acquired Imp. Heat Sink. 02666_ Acquired Particle Gun. LOCATION=UNKNOWN GOAL=ESCAPE 02697_ K-01 Serf collects debris. 02708_ System corrupted: Matter fused (-10). 02710_ K-01 Serf collects debris. 02730_ EXIT=FOUND 02747_ Connecting with Terminal... 02747_ Current location identified: Mines PARAMETERS=PROPULSION+1,UTILITY+1,WEAPON+2 LOCATION=UNKNOWN GOAL=ESCAPE Map ----- +----------------------------------------------------+ | | | | | | | | | | | | | | | | | | | | | | | | | | | ?????????????????????????????????????????????????? | | ?????????????????????????????????????????????????? | | ?????????????????????????????????????????????????? | | ?????????????????????????????????????????????????? | | ?????????????????????????????????????????????????? | | ?????????????????????????????????????????????????? | | ?????????????????????????????????????????????????? | | ?????????????????????????????????????????????????? | | ?????????????????????????????????????????????????? | | ?????????????????????????????????????????????????? | | ???????????????????????#####?????????????????????? | | ???????????????????????# #?????????????????????? | | ???????????????????????# @ #?????????????????????? | | ???????????????????????# #?????????????????????? | | ???????????????????????# #?????????????????????? | | ???????????????????????# #?????????????????????? | | ???????????????????????# #?????????????????????? | | ???????????????????????# #?????????????????????? | | ???????????????????????# #?????????????????????? | | ???????????????????????# #?????????????????????? | | ???????????????????????# #?????????????????????? | | ???????????????????????+ +?????????????????????? | | ???????????????????????# #?????????????????????? | | ???????????????????????# #?????????????????????? | | ???????????????????????# #?????????????????????? | | ???????????????????????? ??????????????????????? | | ???????????????????????? ??????????????????????? | | ???????????????????????? ??????????????????????? | | ?????????????????????????????????????????????????? | | ?????????????????????????????????????????????????? | | ?????????????????????????????????????????????????? | | ?????????????????????????????????????????????????? | | ?????????????????????????????????????????????????? | | ?????????????????????????????????????????????????? | | ?????????????????????????????????????????????????? | | ?????????????????????????????????????????????????? | | ?????????????????????????????????????????????????? | +----------------------------------------------------+ Best States ------------- Heat Dissipation 39 Energy Generation 14 Energy Capacity 250 Matter Stores 300 Matter Capacity 300 Sight Range 16 Terrain Scan Density 10 Armor Coverage 150 Evasion (%) 40 Recoil Reduction 2 Item Schematics ----------------- None Robot Schematics ------------------ None Fabricated ------------ Nothing Alien Tech Used ----------------- None Achievements -------------- None Challenges ------------ None Game ------ Seed SurveybotSapperClaws Manual? 0 Play Time 00:14:40 Cumulative 283.1 hours Start 2022.04.11 @ 23:45:02 End 2022.04.13 @ 22:58:34 Sessions 4 Manual Loads 0 Difficulty Rogue Special Mode None Game No. 80 Rogue 80 Adventurer 0 Explorer 0 Win Type - Total 6 Types 3/1/0/0/2/0/0/0/0 Lore% 58 Gallery% 72 Achievement% 66 Wizard Run 0 Options --------- ASCII 0 Keyboard 0 Movement Arrows Keybinds 0 Fullscreen 0 Font 28/SmallcapsGlow Map View 72x54 Tactical HUD 1 Map Filters NONE Filters NONE Steam 1 RUN: a0f415dd-9192-4399-af46-d48ef5a0eae6